Cogmind - Beta 10.2 @@@ ROGUE MODE // 2020.11.07 @ 12:17:27 // Halloween2020/ForbiddenLore Player: blelm Result: Self-destructed Performance ------------- Evolutions (2) 1000 Regions Visited (5) 1000 Robots Destroyed (50) 250 Value Destroyed (1359) 1359 Prototype IDs (23) 460 Alien Tech Used (0) 0 Bonus (322) 322 TOTAL SCORE: 4391 Bonus ------- Follower Combat Kills 60 Aligned with FarCom 300 Friendly Fire -38 Cogmind --------- Core Integrity 470/550 Matter 26/300 Energy 160/160 System Corruption 0% Temperature Cool (0) Movement Treading (200) Ox2 Location -8/Materials Parts ------- > --- POWER (1) -------- Light Nuclear Core > --- PROPULSION (2) --- Light Treads Light Treads > --- UTILITY (6) ------ High-capacity Storage Unit High-capacity Storage Unit High-capacity Storage Unit > --- WEAPON (2) ------- Light Cannon Rocket Launcher > --- INVENTORY (28) --- Ion Engine Light Treads Flying Fortress v7 Large Storage Unit Large Storage Unit Improved Terrain Scan Processor Particle Cannon Heavy Assault Rifle Light Cannon Mini Grenade Launcher Mini Grenade Launcher Field Lobotomy Kit Mining Laser Katana Peak State ------------ > --- POWER ------------ Light Nuclear Core > --- PROPULSION ------- Light Treads Light Treads > --- UTILITY ---------- High-capacity Storage Unit High-capacity Storage Unit High-capacity Storage Unit > --- WEAPON ----------- Light Cannon Rocket Launcher > --- INVENTORY -------- Ion Engine Light Treads Flying Fortress v7 Large Storage Unit Large Storage Unit Improved Terrain Scan Processor Particle Cannon Heavy Assault Rifle Light Cannon Mini Grenade Launcher Mini Grenade Launcher Field Lobotomy Kit Mining Laser Katana [Rating: 17] Favorites ----------- Power Ion Engine Engine Ion Engine Power Core Light Nuclear Core Propulsion Light Treads Treads Light Treads Leg Aluminum Leg Wheel Compact Wheel Utility High-capacity Storage Unit Storage High-capacity Storage Unit Protection Light Armor Plating Weapon Light Cannon Energy Gun EM Pulse Gun Ballistic Cannon Light Cannon Launcher Rocket Launcher Slashing Weapon Mining Claw Build | -11 -10 -10 -10 -9 -8 ------- Run | Scr Mat Min Exi Min Mat Slots Evolved 4 | . . . . . 4 Power . | . . . . . . Propulsion . | . . . . . . Utility 4 | . . . . . 4 Weapon . | . . . . . . Parts Attached 32 | 3 7 6 2 3 11 Power 3 | . 1 . . 1 1 Engine 2 | . 1 . . 1 . Core 1 | . . . . . 1 Reactor . | . . . . . . Propulsion 6 | 2 2 . . . 2 Treads 5 | 1 2 . . . 2 Leg . | . . . . . . Wheel 1 | 1 . . . . . Hover . | . . . . . . Flight . | . . . . . . Utility 7 | 1 2 . 2 . 2 Device . | . . . . . . Storage 6 | 1 2 . 2 . 1 Processor . | . . . . . . Hackware . | . . . . . . Protection 1 | . . . . . 1 Artifact . | . . . . . . Weapon 16 | . 2 6 . 2 6 Energy Gun 3 | . 1 2 . . . Energy Cannon . | . . . . . . Ballistic Gun . | . . . . . . Ballistic Cannon 6 | . . 2 . 1 3 Launcher 6 | . 1 1 . 1 3 Special Weapon . | . . . . . . Impact Weapon . | . . . . . . Slashing Weapon 1 | . . 1 . . . Piercing Weapon . | . . . . . . Special Melee Weapon . | . . . . . . Unidentified Prototypes . | . . . . . . Parts Lost 9 | . 2 2 . 1 4 Power 2 | . 1 . . 1 . Propulsion 3 | . 1 . . . 2 Utility 1 | . . . . . 1 Weapon 3 | . . 2 . . 1 Highest Loss Streak 3 | . 2 2 . 1 3 Average Slot Usage (%) 96 | . 99 100 100 100 74 Engine 12 | . 14 14 14 14 5 Treads 24 | . 20 28 28 28 17 Wheel 2 | . 7 . . . . Storage 27 | . 28 28 28 28 27 Energy Gun 11 | . 27 8 . . . Ballistic Cannon 12 | . . 12 28 28 16 Launcher 2 | . . 5 . . 1 Naked Turns . | . . . . . . Heaviest Build 111 | 17 49 51 75 75 111 Greatest Support 40 | 16 40 40 40 40 40 Greatest Overweight (x) 2 | 1 2 1 1 1 2 Average Overweight (x) 1 | . 1 1 1 1 2 Largest Inventory Capacity 28 | 8 16 16 20 20 28 Average Capacity 17 | 6 12 16 18 20 27 Most Carried 20 | 6 11 15 20 20 18 Average Carried 12 | 3 8 12 17 19 16 Final Capacity 28 | 8 16 16 20 20 28 Final Carried 20 | 3 11 14 20 19 17 Class Distribution -------------------- 68% | Mutant 31% | Hauler-Mutant Dominant Class ---------------- Mutant | -10/Materials Mutant | -10/Mines Hauler-Mutant | -10/Exiles Hauler-Mutant | -9/Mines Hauler-Mutant | -8/Materials Resources | -11 -10 -10 -10 -9 -8 ----------- Run | Scr Mat Min Exi Min Mat Matter Collected 696 | 230 87 151 . 95 133 Remotely . | . . . . . . Salvage Created 1274 | 93 433 212 . 113 423 Parts 83 | 1 32 22 . 6 22 Haulers Intercepted 1 | . 1 . . . . Recyclers Shooed 1 | 1 . . . . . Parts Field Recycled . | . . . . . . Retrieved Matter . | . . . . . . Parts Self-Destructed . | . . . . . . Prevented . | . . . . . . Kills | -11 -10 -10 -10 -9 -8 ------- Run | Scr Mat Min Exi Min Mat Combat Hostiles Destroyed 37 | . 9 8 . 4 16 Guns 6 | . 5 1 . . . Cannons 9 | . . 4 . 2 3 AOE 21 | . 3 3 . 2 13 Classes Destroyed 10 | 1 6 3 . . . Worker 4 | . 1 3 . . . Builder 2 | . . 1 . . 1 Tunneler 1 | . . 1 . . . Hauler 1 | . 1 . . . . Recycler 1 | 1 . . . . . Operator 2 | . 1 . . . 1 Watcher 2 | . 2 . . . . Swarmer 12 | . 3 6 . . 3 Grunt 23 | . 6 . . 4 13 Sentry 2 | . . 2 . . . Best Kill Streak 6 | 1 4 6 . 3 6 Combat Bots Only 5 | . 3 3 . 3 5 Max Kills in Single Turn 3 | 1 2 3 . 2 3 Gunslinging . | . . . . . . Exploded 3 | . 2 1 . 2 3 Melee . | . . . . . . Uniques/NPCs Destroyed . | . . . . . . Combat | -11 -10 -10 -10 -9 -8 -------- Run | Scr Mat Min Exi Min Mat Damage Taken 1448 | 17 340 368 . 152 571 Core 174 | . 48 34 . 12 80 Absorbed by Shields . | . . . . . . Core Remaining (%) 81 | 100 . . . 62 . Volleys Fired 92 | 3 30 15 . 6 38 Largest 2 | 2 2 2 . 2 2 Hottest 80 | 80 80 80 . 70 70 Shots Fired 162 | 6 58 27 . 11 60 Gun 68 | 6 56 6 . . . Cannon 76 | . . 18 . 10 48 Launcher 18 | . 2 3 . 1 12 Special . | . . . . . . Kinetic 76 | . . 18 . 10 48 Thermal . | . . . . . . Explosive 18 | . 2 3 . 1 12 Electromagnetic 68 | 6 56 6 . . . Robot Hit Streak 12 | 5 9 12 . 3 9 Robot Miss Streak 4 | . 3 3 . 1 4 Penetration Max . | . . . . . . Secondary Targets . | . . . . . . Shots Hit Robots 94 | 5 36 15 . 5 33 Core Hits 79 | 2 18 15 . 5 39 Critical Hits 1 | . . . . . 1 Critical Kills . | . . . . . . Critical Parts Destroyed 1 | . . . . . 1 Melee Attacks 3 | . . 3 . . . Impact . | . . . . . . Slashing 3 | . . 3 . . . Piercing . | . . . . . . Sneak Attacks . | . . . . . . Combat Hostiles . | . . . . . . Follow-up Attacks . | . . . . . . Damage Inflicted 3458 | 91 851 504 . 243 1769 Guns 626 | 67 488 71 . . . Cannons 613 | . . 158 . 67 388 Explosions 2150 | 24 340 238 . 176 1372 Melee . | . . . . . . Ramming 69 | . 23 37 . . 9 Kinetic 613 | . . 158 . 67 388 Thermal 88 | 24 64 . . . . Explosive 2062 | . 276 238 . 176 1372 Electromagnetic 626 | 67 488 71 . . . Impact . | . . . . . . Slashing . | . . . . . . Piercing . | . . . . . . Highest Corruption . | . . . . . . Average Corruption . | . . . . . . Corruption Purged . | . . . . . . Overload Shots . | . . . . . . Overflow Damage 61 | . 31 . . . 30 Projectiles 9 | . . . . . 9 Explosions 52 | . 31 . . . 21 Melee . | . . . . . . Knockbacks 8 | . . . . 1 7 Impact . | . . . . . . Kinetic 7 | . . . . 1 6 Secondary 1 | . . . . . 1 Self-Inflicted Damage 134 | 17 7 . . 38 72 Shots 5 | 1 . . . 1 3 Rammed 8 | . 3 4 . . 1 Targets Rammed 9 | . 3 5 . . 1 Kicked . | . . . . . . Crushed 1 | . . 1 . . . Highest Temperature 186 | 66 186 116 . 25 27 Average Temperature 42 | 35 58 52 . 13 8 Received Heat Transfer 611 | . 159 81 . 83 288 Siege Activations . | . . . . . . Robots Corrupted 2 | . 2 . . . . Combat Hostiles 1 | . 1 . . . . Parts Fried 4 | . 4 . . . . Impact Corruptions . | . . . . . . Robots Melted . | . . . . . . Combat Hostiles . | . . . . . . Parts Melted . | . . . . . . Heat Transferred 100 | 50 50 . . . . Parts Sabotaged . | . . . . . . Parts Stolen . | . . . . . . Parts Stripped . | . . . . . . Power Chain Reactions 2 | 1 1 . . . . Missiles Intercepted . | . . . . . . Alert | -11 -10 -10 -10 -9 -8 ------- Run | Scr Mat Min Exi Min Mat Peak Influence 320 | 5 164 92 . 132 320 Initial 43 | . 3 7 . . 43 Average 86 | 2 70 44 . 84 217 Maximum Alert Level 1 | . . . . . 1 Low Security (%) 89 | 100 100 100 . 100 42 Level 1 10 | . . . . . 57 Level 2 . | . . . . . . Level 3 . | . . . . . . Level 4 . | . . . . . . Level 5 . | . . . . . . High Security . | . . . . . . Max Security . | . . . . . . Squads Dispatched 5 | . 2 . . . 3 Investigation 1 | . 1 . . . . Extermination . | . . . . . . Reinforcement 4 | . 1 . . . 3 Assault . | . . . . . . Garrison . | . . . . . . Intercept . | . . . . . . Construction Impeded 1 | . . . . . 1 Haulers Reinforced . | . . . . . . Stealth | -11 -10 -10 -10 -9 -8 --------- Run | Scr Mat Min Exi Min Mat Distress Signals 2 | . . 1 . . 1 Communications Jammed . | . . . . . . Distress Signals . | . . . . . . Times Spotted 54 | . 13 8 . 12 21 Peak Tracking Total 18 | . 3 3 . 18 6 Tactical Retreats . | . . . . . . Traps | -11 -10 -10 -10 -9 -8 ------- Run | Scr Mat Min Exi Min Mat Traps Triggered 1 | . 1 . . . . Indirectly . | . . . . . . Trap Hack Attempts . | . . . . . . Triggered . | . . . . . . Disarmed . | . . . . . . Reprogrammed . | . . . . . . Reused . | . . . . . . Traps Extracted . | . . . . . . Installed . | . . . . . . Triggered . | . . . . . . Machines | -11 -10 -10 -10 -9 -8 ---------- Run | Scr Mat Min Exi Min Mat Machines Disabled 6 | . 1 . . 1 4 Max in Single Turn 2 | . 1 . . 1 2 Machines Sabotaged . | . . . . . . Garrisons Compromised . | . . . . . . Overloaded Fab Kills . | . . . . . . Fab Network Shutdowns . | . . . . . . Hacking | -11 -10 -10 -10 -9 -8 --------- Run | Scr Mat Min Exi Min Mat Machines Accessed 9 | . 7 . 2 . . Terminals 6 | . 6 . . . . Fabricators . | . . . . . . Repair Stations 1 | . 1 . . . . Recycling Units . | . . . . . . Scanalyzers . | . . . . . . Garrison Access . | . . . . . . Total Hacks 23 | . 21 . 2 . . Successful 9 | . 7 . 2 . . Failed 14 | . 14 . . . . Catastrophic . | . . . . . . Database Lockouts . | . . . . . . Manual 15 | . 14 . 1 . . Terminals 19 | . 19 . . . . Fabricators . | . . . . . . Repair Stations 2 | . 2 . . . . Recycling Units . | . . . . . . Scanalyzers . | . . . . . . Garrison Access . | . . . . . . Terminal Hacks 6 | . 4 . 2 . . Record 1 | . . . 1 . . Part Schematic 1 | . 1 . . . . Robot Analysis 2 | . 2 . . . . Recall Investigation 1 | . 1 . . . . EX-Prototype ID Bank 1 | . . . 1 . . Fabricator Hacks . | . . . . . . Repair Station Hacks 2 | . 2 . . . . Scan Component 1 | . 1 . . . . Repair 1 | . 1 . . . . Recycling Unit Hacks . | . . . . . . Scanalyzer . | . . . . . . Garrison Access Hacks . | . . . . . . Unauthorized Hacks 1 | . 1 . . . . Terminals 1 | . 1 . . . . Botnet 1 | . 1 . . . . Fabricators . | . . . . . . Repair Stations . | . . . . . . Recycling Units . | . . . . . . Scanalyzers . | . . . . . . Garrison Access . | . . . . . . Data Cores Recovered . | . . . . . . Used . | . . . . . . Hacking Detections 6 | . 6 . . . . Full Trace Events . | . . . . . . Feedback Events . | . . . . . . Feedback Blocked . | . . . . . . Robot Schematics Acquired . | . . . . . . Robots Built . | . . . . . . Matter . | . . . . . . Time . | . . . . . . Total Robot Build Rating . | . . . . . . Part Schematics Acquired 1 | . 1 . . . . Parts Built . | . . . . . . Matter . | . . . . . . Time . | . . . . . . Total Part Build Rating . | . . . . . . Parts Repaired 1 | . 1 . . . . Time 26 | . 26 . . . . Parts Recycled . | . . . . . . Recycled Matter . | . . . . . . Retrieved Matter . | . . . . . . Retrieved Components . | . . . . . . Parts Scanalyzed . | . . . . . . Part Schematics Acquired . | . . . . . . Parts Damaged . | . . . . . . Bothacking | -11 -10 -10 -10 -9 -8 ------------ Run | Scr Mat Min Exi Min Mat Used RIF Installer . | . . . . . . Robots Hacked . | . . . . . . Non-combat . | . . . . . . Combat . | . . . . . . Robot Hacks Applied . | . . . . . . Relay Couplers Released . | . . . . . . Robots Rewired . | . . . . . . Allies Hacked . | . . . . . . Hacks Repelled . | . . . . . . Allies | -11 -10 -10 -10 -9 -8 -------- Run | Scr Mat Min Exi Min Mat Total Allies 3 | . . 1 . 2 . Largest Group 2 | . . 1 1 2 . Highest-Rated Group 41 | . . 31 31 41 . Highest-Rated Ally 31 | . . 31 31 31 . Total Orders . | . . . . . . Ally Attacks 6 | . . . . 6 . Total Damage 106 | . . . . 106 . Kills 2 | . . . . 2 . Allies Corrupted . | . . . . . . Allies Melted . | . . . . . . Intel | -11 -10 -10 -10 -9 -8 ------- Run | Scr Mat Min Exi Min Mat Robot Analysis Total 2 | . 2 . . . . Derelict Logs Recovered 2 | . . 1 . 1 . Drone Launches . | . . . . . . Drone Recoveries . | . . . . . . Exploration | -11 -10 -10 -10 -9 -8 ------------- Run | Scr Mat Min Exi Min Mat Turns Passed 3099 | 23 895 1049 507 156 469 Spaces Moved 1603 | 9 531 542 277 72 172 Core . | . . . . . . Treads 1298 | . 235 542 277 72 172 Legs . | . . . . . . Wheels 305 | 9 296 . . . . Hover . | . . . . . . Flight . | . . . . . . Fastest Speed 100 | 100 110 180 180 180 200 Average Speed 168 | 106 141 180 180 180 200 Slowest Speed 200 | 110 200 180 180 180 200 Overloaded Moves . | . . . . . . Propulsion Burnouts . | . . . . . . Robots Hopped . | . . . . . . Cave-ins Triggered . | . . . . . . Exploration Rate (%) 48 | 2 86 99 65 24 17 Regions Visited 5 Branch Regions 3 Pre-discovered Areas 1 | . . . 1 . . Known Exits Taken 1 | . . . 1 . . Unknown Exits Taken 4 | 1 1 1 . 1 . Scrap Searched 1 | . . 1 . . . Spaces Dug 26 | . . 14 . 8 4 Terrain Destroyed 107 | . 28 26 . 8 45 Melee 2 | . . 2 . . . Projectile . | . . . . . . AOE 105 | . 28 24 . 8 45 Terrain Rammed . | . . . . . . Walls Destroyed . | . . . . . . Machines Disabled . | . . . . . . Actions | -11 -10 -10 -10 -9 -8 --------- Run | Scr Mat Min Exi Min Mat Total 1816 | 17 616 577 286 87 233 Wait 43 | . 28 . . 7 8 Move 1598 | 8 530 541 276 71 172 Hop . | . . . . . . Pick Up 27 | . 13 6 5 . 3 Fast Attach 2 | 1 1 . . . . Attach 12 | 2 2 2 . 1 5 Detach . | . . . . . . Swap 18 | . 4 4 2 2 6 Drop 12 | 3 5 1 3 . . Fire 92 | 3 30 15 . 6 38 Melee 3 | . . 3 . . . Ram 1 | . 1 . . . . Kick . | . . . . . . Crush 8 | . 2 5 . . 1 Escape Stasis . | . . . . . . Rewire . | . . . . . . Trap . | . . . . . . Miscellaneous . | . . . . . . Route ------- -11/Scrapyard -10/Materials (discovered 5 exits: [*Mat x3] / [*Min x2]) -10/Mines (discovered 3 exits: [*Mat x2] / *Exi) -10/Exiles (discovered 2 exits: *Min x2) -9/Mines -8/Materials History --------- Turn | Location | Event 14 | -11/Scrapyard | Discovered new exit (range 3) 24 | -11/Scrapyard | Entered Materials 92 | -10/Materials | Discovered new exit (range 6) 314 | -10/Materials | Build established: Mutant 355 | -10/Materials | Discovered new exit (range 4) 409 | -10/Materials | Discovered new exit (range 5) 436 | -10/Materials | Discovered new exit (range 3) 626 | -10/Materials | Repaired Lgt. Treads 742 | -10/Materials | Discovered new exit (range 8) 919 | -10/Materials | Entered Mines 927 | -10/Mines | Met a Derelict bent on vengeance 1011 | -10/Mines | Discovered new exit (range 10) 1797 | -10/Mines | Discovered new exit (range 6) 1798 | -10/Mines | Received a Mining Laser from a helpful Derelict 1959 | -10/Mines | Deemed a non-threat by the Exiles lab entrance 1961 | -10/Mines | Discovered new exit (range 5) 1968 | -10/Mines | Entered Exiles 1968 | -10/Exiles | Accompanied by 1 ally 1969 | -10/Exiles | Identified exit to Mines 2013 | -10/Exiles | Met 8R-AWN 2042 | -10/Exiles | Met EX-HEX 2176 | -10/Exiles | Met EX-BIN 2205 | -10/Exiles | Aligned with FarCom system 2206 | -10/Exiles | Given EX-Vault access code 2248 | -10/Exiles | Opened EX-Vault 2257 | -10/Exiles | Found Field Lobotomy Kit 2260 | -10/Exiles | Found Flying Fortress v7 2301 | -10/Exiles | Warned to stay clear of 0b10 Research branches 2323 | -10/Exiles | Exiles lab attacked by MAIN.C 2366 | -10/Exiles | Learned location of Zion (-6) 2395 | -10/Exiles | Build established: Hauler-Mutant 2475 | -10/Exiles | Stole two prototypes: Flying Fortress v7, Field Lobotomy Kit 2475 | -10/Exiles | Entered Mines 2561 | -9/Mines | Learned Materials trap positions 2598 | -9/Mines | Discovered new exit (range 8) 2621 | -9/Mines | Assembled infested the area 2631 | -9/Mines | Entered Materials 2631 | -8/Materials | Evolved 4 slots: Utility x4 2632 | -8/Materials | Loaded intel: 20 trap records 2813 | -8/Materials | Lost 3 parts (1n1u1w) 3100 | -8/Materials | Self-destructed Last Messages --------------- 03057_ K-01 Serf cleans the Atomic Centrifuge. 03060_ O-16 Technician uses terminal to summon reinforcements. 03060_ ALERT: Hostiles spotted, dispatching reinforcements to Terminal M001. 03060_ O-16 Technician locks terminal. 03062_ Destroyed Hover Unit. 03062_ O-16 Technician destroyed. 03080_ K-01 Serf cleans the Atomic Centrifuge. 03083_ Terminal disabled. 03083_ G-47 Trooper destroyed. 03083_ Atomic Centrifuge disabled. 03085_ K-01 Serf collects debris. 03091_ Destroyed Particle Gun. 03091_ G-50 Soldier destroyed. 03091_ G-47 Trooper destroyed. 03094_ K-01 Serf collects debris. 03096_ G-47 Trooper destroyed. 03097_ K-01 Serf collects debris. 03098_ G-47 Trooper destroyed. 03098_ U-05 Engineer destroyed. Map ----- +----------------------------------------------------+ | ??????????????????????????????????????????????? | | ??????????????????????????????????????????????? | | ??????????????????????????????????????????????? | | ??????????????????????????????????????????????? | | ??????????????????????????????????????????????? | | ??????????????????????????????????????????????? | | ??????????????????????????????????????????????? | | ??????????????????????????????????????????????? | | ??????????????????????????????????????????????? | | ??????????????????????????????????????????????? | | ??????????????????????????????????????????????? | | ???????????????????????????## ????????????????? | | ??######??????????????????? ?????????????? | | ??? ??????????????????? ???????????? | | ???? ########+########## #??????????? | | ????? ^ ^ % #??????????? | | ????? g =* #??????????? | | ?????? ^ #??????????? | | ???????# """ """ """^ " #??????????? | | ???????# """ """ """ k % #???????????? | | ???????# """ """ """ ##???????????? | | ???????# #???????????? | | ???????# #???????????? | | ???????# +???????????? | | ######?# #???????????? | | #?# ##############@### #???????????? | | #?# w# # #??? #???????????? | | #?# # # #?????????????????? | | #?# + """" #= """ #?????????????????? | | #?# # """" # """"" #?????????????????? | | # ##?# # """" # """"" #?????????????????? | | # #??# # # """"" #?????????????????? | | # #??# # """" #= """ #?????????????????? | | # #??# # """" # #?????????????????? | | # #??# # """" # ?? #?????????????????? | | # #??# # #####????#?????????????????? | | # ##?# #! ?? #??????????????????????????? | | ### ###????##??????????????????????????? | | #??????????????????????????????????? | | #######??????????????????????????????????? | | #????????????????????????????????????????? | | [ #????????????????????????????????????????? | | # ##????????????????????????????????????????? | | # #?????????????????????????????????????????? | | # #?????????????????????????????????????????? | | # #?????????????????????????????????????????? | | # #?????????????????????????????????????????? | | # #?????????????????????????????????????????? | | # #?????????????????????????????????????????? | | #?????????????????????????????????????????? | +----------------------------------------------------+ Best States ------------- Heat Dissipation 31 Energy Generation 14 Energy Capacity 250 Matter Stores 300 Matter Capacity 300 Sight Range 16 Terrain Scan Density 10 Armor Coverage 150 Evasion (%) 40 Recoil Reduction 2 Item Schematics ----------------- Hcp. Storage Unit | -10/Materials | Hacked Robot Schematics ------------------ None Fabricated ------------ Nothing Alien Tech Used ----------------- None Achievements -------------- None Challenges ------------ None Game ------ Seed ZioniteModifiedStreamer Manual? 0 Play Time 00:21:14 Cumulative 69.9 hours Start 2020.11.07 @ 11:39:13 End 2020.11.07 @ 12:17:27 Sessions 1 Manual Loads 0 Difficulty Rogue Special Mode Halloween2020/ForbiddenLore Game No. 49 Rogue 49 Adventurer 0 Explorer 0 Win Type - Total 1 Types 1/0/0/0/0/0/0/0/0 Lore% 31 Gallery% 42 Achievement% 35 Wizard Run 0 Options --------- ASCII 1 Keyboard 1 Movement Vi Keybinds 0 Fullscreen 1 Font 16/Terminus Map View 75x55 Tactical HUD 1 Map Filters NONE Filters NONE Steam 1 RUN: 0f0ce730-62e2-4f8c-9f30-127547e25132